fUSD/lending_fUSD_20250602
["ID","MTS","AMOUNT","RATE_DAILY","PERIOD"]
[363833178,1748892609757,1006.76,0.00041095,120]
[363833179,1748892609894,460.0,0.00041095,120]
[363833180,1748892610599,460.0,0.00041095,120]
[363833181,1748892611581,658.44,0.00041095,120]
[363833182,1748892611894,460.0,0.00041095,120]
[363833183,1748892612288,460.0,0.00041095,120]
[363833184,1748892612514,460.0,0.00041095,120]
[363833185,1748892614989,405.43249336,0.00041095,120]
[363833186,1748892615651,460.0,0.00041095,120]
[363833187,1748892616293,460.0,0.00041095,120]
[363833188,1748892617667,3752.01,0.00041095,120]
[363833189,1748892617740,460.0,0.00041095,120]
[363833190,1748892618680,460.0,0.00041095,120]
[363833191,1748892618886,675.15,0.00041095,120]
[363833192,1748892620121,460.0,0.00041095,120]
[363833193,1748892620773,431.29241828,0.00041095,120]
[363833194,1748892621479,734.31,0.00041095,120]
[363833195,1748892622608,300.0,0.00041095,120]
[363833196,1748892623140,460.0,0.00041095,120]
[363833197,1748892623489,460.0,0.00041095,120]
[363833198,1748892623593,460.0,0.00041095,120]
[363833199,1748892624673,460.0,0.00041095,120]
[363833200,1748892627353,460.0,0.00041095,120]
[363833201,1748892627818,460.0,0.00041095,120]
[363833202,1748892628479,420.0,0.00041095,120]
[363833203,1748892628837,460.0,0.00041095,120]
[363833204,1748892629305,420.0,0.00041095,120]
[363833205,1748892629359,460.0,0.00041095,120]
[363833206,1748892629983,460.0,0.00041095,120]
[363833207,1748892630431,460.0,0.00041095,120]
[363833208,1748892630508,420.0,0.00041095,120]
[363833209,1748892631576,460.0,0.00041095,120]
[363833210,1748892631639,1115.63,0.00041095,120]
[363833211,1748892631690,460.0,0.00041095,120]
[363833216,1748892632855,-1786.70151479,0.0001902,2]
[363833217,1748892632866,-1200.0,0.00019899,2]
[363833218,1748892632875,-859.56265797,0.000199,2]
[363833219,1748892632926,460.0,0.00041095,120]
[363833220,1748892633121,460.0,0.00041095,120]
[363833221,1748892633263,460.0,0.00041095,120]
[363833222,1748892634152,460.0,0.00041095,120]
[363833223,1748892634659,460.0,0.00041095,120]
[363833224,1748892635399,460.0,0.00041095,120]
[363833225,1748892635750,460.0,0.00041095,120]
[363833226,1748892636086,625.66,0.00041095,120]
[363833227,1748892636152,460.0,0.00041095,120]
[363833228,1748892636795,460.0,0.00041095,120]
[363833229,1748892636932,536.78394275,0.00041095,120]
[363833230,1748892637388,420.0,0.00041095,120]
[363833231,1748892637486,420.0,0.00041095,120]
[363833254,1748892638967,460.0,0.00041095,120]
[363833262,1748892639041,460.0,0.00041095,120]
[363833309,1748892639485,460.0,0.00041095,120]
[363833319,1748892639591,460.0,0.00041095,120]
[363833324,1748892639639,460.0,0.00041095,120]
[363833357,1748892640976,950.13,0.00041095,120]
[363833358,1748892641020,420.0,0.00041095,120]
[363833359,1748892641280,460.0,0.00041095,120]
[363833360,1748892641681,460.0,0.00041095,120]
[363833361,1748892641784,460.0,0.00041095,120]
[363833362,1748892641853,651.69,0.00041095,120]
[363833363,1748892643237,460.0,0.00041095,120]
[363833365,1748892643354,460.0,0.00041095,120]
[363833366,1748892643386,-204.0,0.00019819,2]
[363833367,1748892643396,-192.24494903,0.000199,2]
[363833368,1748892643405,-3352.97036264,0.000199,2]
[363833369,1748892643415,-600.0,0.000199,7]
[363833370,1748892643424,-4641.47674873,0.000199,2]
[363833371,1748892643433,-898.46711295,0.000199,2]
[363833372,1748892643443,-214.97681744,0.000199,2]
[363833373,1748892643453,-424619.89087407,0.0002,2]
[363833374,1748892643523,-1937.64176731,0.0002,2]
[363833375,1748892643641,420.0,0.00041095,120]
[363833381,1748892644508,460.0,0.00041095,120]
[363833382,1748892645181,460.0,0.00041095,120]
[363833383,1748892645318,460.0,0.00041095,120]
[363833384,1748892646370,-379.75425327,0.0002,2]
[363833385,1748892646382,-4411.5376238,0.0002,2]
[363833386,1748892646394,-9405.13954514,0.0002,2]
[363833387,1748892646478,-296812.97443798,0.0002,2]
[363833388,1748892646488,-92304.05739541,0.0002,2]
[363833389,1748892646498,-302.35680735,0.0002,2]
[363833390,1748892646508,-1030.24303695,0.0002,2]
[363833391,1748892646521,-5885.40720404,0.0002,2]
[363833392,1748892646535,-1260.0,0.0002,2]
[363833393,1748892646548,-1824.34975901,0.0002,2]
[363833394,1748892646561,-152.71,0.00020187,2]
[363833395,1748892646571,-715.7241442,0.00020567,2]
[363833396,1748892646593,-182.74296869,0.00020567,2]
[363833397,1748892646603,-251.23265118,0.00020623,2]
[363833398,1748892646623,-625.43734882,0.00020623,2]
[363833399,1748892646633,-3352.97036259,0.00020635,2]
[363833400,1748892646644,-305.83,0.00020925,2]
[363833401,1748892646654,-302.36,0.00020925,2]
[363833402,1748892646664,-305.42,0.00020925,2]
[363833403,1748892646673,-302.37,0.00020925,2]
[363833404,1748892646682,-305.78,0.00020925,2]
[363833405,1748892646692,-303.04,0.00020925,2]
[363833406,1748892646701,-302.59,0.00020925,2]
[363833407,1748892646711,-304.43,0.00020925,2]
[363833408,1748892646720,-303.16,0.00020925,2]
[363833409,1748892646729,-302.8,0.00020925,2]
[363833410,1748892646739,-305.17,0.00020925,2]
[363833411,1748892646748,-303.46,0.00020925,2]
[363833412,1748892646757,-303.06,0.00020925,2]
[363833413,1748892646766,-305.95,0.00020925,2]
[363833414,1748892646776,-302.12,0.00020925,2]
[363833415,1748892646786,-303.56,0.00020925,2]
[363833416,1748892646795,-305.17,0.00020925,2]
[363833417,1748892646804,-304.99,0.00020925,2]
[363833418,1748892646813,-301.4,0.00020925,2]
[363833419,1748892646823,-303.95,0.00020925,2]
[363833420,1748892646832,-305.94,0.00020925,2]
[363833421,1748892646842,-305.24,0.00020925,2]
[363833422,1748892646851,-301.16,0.00020925,2]
[363833423,1748892646861,-302.23,0.00020925,2]
[363833424,1748892646870,-304.3,0.00020925,2]
[363833425,1748892646880,-301.83,0.00020925,2]
[363833426,1748892646888,-20000.0,0.00021,2]
[363833427,1748892646895,-300.21,0.00021,2]
[363833428,1748892646902,-305.19,0.00021,2]
[363833429,1748892646909,-305.77,0.00021,2]
[363833430,1748892646916,-898.46711289,0.00021233,2]
[363833431,1748892646924,-3352.97036259,0.00021371,2]
[363833432,1748892646931,-3322.83,0.00021481,2]
[363833433,1748892646939,-181.49,0.00021482,2]
[363833434,1748892646948,-305.38,0.00021559,2]
[363833435,1748892646957,-300.83,0.00021559,2]
[363833436,1748892646966,-304.68,0.00021559,2]
[363833437,1748892646975,-303.18,0.00021559,2]
[363833438,1748892646984,-300.06,0.00021559,2]
[363833439,1748892646993,-300.44,0.00021559,2]
[363833440,1748892647002,-301.57,0.00021559,2]
[363833441,1748892647012,-304.31,0.00021559,2]
[363833442,1748892647021,-305.49,0.00021559,2]
[363833443,1748892647030,-302.59,0.00021559,2]
[363833444,1748892647039,-304.14,0.00021559,2]
[363833445,1748892647048,-1000.0,0.00021634,2]
[363833446,1748892647057,-151.0,0.00021724,2]
[363833447,1748892647066,-207.4,0.00021724,2]
[363833448,1748892647075,-846.40464585,0.00021724,2]
[363833449,1748892647085,-500.0,0.00021724,2]
[363833450,1748892647094,-500.0,0.00021724,2]
[363833451,1748892647104,-500.0,0.00021724,2]
[363833452,1748892647114,-497.08,0.00021724,2]
[363833453,1748892647124,-635.0,0.00021737,2]
[363833454,1748892647134,-1369.987,0.00021737,2]
[363833455,1748892647143,-801.0,0.00021737,2]
[363833456,1748892647152,-924.0,0.00021737,2]
[363833457,1748892647161,-1269.0,0.00021737,2]
[363833458,1748892647171,-588.0,0.00021737,2]
[363833459,1748892647180,-1253.0,0.00021737,2]
[363833460,1748892647189,-557.0,0.00021737,2]
[363833461,1748892647198,-155.0,0.00021737,2]
[363833462,1748892647207,-4075.0,0.00021737,2]
[363833463,1748892647217,-850.0,0.00021737,2]
[363833464,1748892647226,-1087.0,0.00021774,2]
[363833465,1748892647235,-6147.12,0.00021797,2]
[363833466,1748892647245,-204.0,0.00021828,4]
[363833467,1748892647254,-898.46711289,0.000219,2]
[363833468,1748892647263,-214.97681743,0.00021914,2]
[363833469,1748892647272,-475.0,0.00022,2]
[363833470,1748892647282,-158.0,0.00022,2]
[363833471,1748892647291,-1000.0,0.00022006,2]
[363833472,1748892647301,-3352.97036259,0.00022106,2]
[363833473,1748892647311,-475.0,0.00022192,7]
[363833474,1748892647320,-1275.44,0.00022198,2]
[363833475,1748892647330,-256.87,0.00022246,2]
[363833476,1748892647339,-500.0,0.00022411,2]
[363833477,1748892647349,-900.0,0.00022428,2]
[363833478,1748892647358,-9561.5,0.00022562,2]
[363833479,1748892647368,-999.99,0.00022562,2]
[363833480,1748892647379,-150.99,0.00022562,2]
[363833481,1748892647389,-898.46711289,0.00022567,2]
[363833482,1748892647399,-150.0,0.00022603,2]
[363833483,1748892647408,-150.0,0.0002263,2]
[363833484,1748892647418,-198.0,0.00022658,2]
[363833485,1748892647427,-302.34,0.00022696,2]
[363833486,1748892647437,-305.09,0.00022696,2]
[363833487,1748892647447,-303.07,0.00022792,2]
[363833488,1748892647457,-1000.0,0.00022832,2]
[363833489,1748892647467,-3352.97036259,0.00022842,2]
[363833490,1748892647477,-185.96,0.00022844,2]
[363833491,1748892647487,-876.67,0.00022887,2]
[363833492,1748892647497,-1200.0,0.000229,8]
[363833493,1748892647507,-460.6,0.0002291,2]
[363833494,1748892647517,-783.177903,0.00022942,3]
[363833495,1748892647527,-1735.71,0.00023,2]
[363833496,1748892647536,-800.0,0.00023,8]
[363833497,1748892647546,-800.0,0.00023,8]
[363833498,1748892647556,-800.0,0.00023,8]
[363833499,1748892647568,-800.0,0.00023,8]
[363833500,1748892647578,-800.0,0.00023,8]
[363833501,1748892647587,-800.0,0.00023,8]
[363833502,1748892647597,-800.0,0.00023,8]
[363833503,1748892647608,-417.19880434,0.00023,8]
[363833504,1748892647617,-475.0,0.00023014,7]
[363833505,1748892647627,-156.587,0.00023093,2]
[363833506,1748892647636,-215.0738,0.00023093,2]
[363833507,1748892647647,-707.94,0.00023099,2]
[363833508,1748892647657,-354.01,0.00023112,2]
[363833509,1748892647667,-354.01,0.00023112,2]
[363833510,1748892647676,-354.01,0.00023112,2]
[363833511,1748892647685,-354.01,0.00023112,2]
[363833512,1748892647695,-7000.0,0.0002318,2]
[363833513,1748892647705,-898.46711289,0.00023233,2]
[363833514,1748892647714,-155.0,0.00023288,2]
[363833515,1748892647723,-877.936,0.00023303,2]
[363833516,1748892647733,-154.58142147,0.00023393,2]
[363833517,1748892647743,-33300.5100474,0.00023403,2]
[363833518,1748892647752,-69704.69084392,0.00023403,2]
[363833519,1748892647765,-2839.41,0.00023403,2]
[363833520,1748892647780,-997.48,0.00023403,2]
[363833521,1748892648219,460.0,0.00041095,120]
[363833522,1748892648275,460.0,0.00041095,120]
[363833523,1748892648388,460.0,0.00041095,120]
[363833524,1748892648548,460.0,0.00041095,120]
[363833525,1748892649250,460.0,0.00041095,120]
[363833526,1748892649319,440.95,0.00041095,120]
[363833527,1748892650249,420.0,0.00041095,120]
[363833528,1748892650310,460.0,0.00041095,120]
[363833529,1748892651298,460.0,0.00041095,120]
[363833530,1748892651343,460.0,0.00041095,120]
[363833531,1748892651389,1634.89,0.00041095,120]
[363833532,1748892652345,460.0,0.00041095,120]
[363833533,1748892653189,460.0,0.00041095,120]
[363833534,1748892653528,660.4,0.00041095,120]
[363833535,1748892654050,460.0,0.00041095,120]
[363833536,1748892654425,380.0,0.00041095,120]
[363833537,1748892654479,460.0,0.00041095,120]
[363833538,1748892654545,420.0,0.00041095,120]
[363833539,1748892654976,460.0,0.00041095,120]
[363833540,1748892656126,380.0,0.00041095,120]
[363833541,1748892656668,460.0,0.00041095,120]
[363833542,1748892656856,460.0,0.00041095,120]
[363833543,1748892656982,460.0,0.00041095,120]
[363833544,1748892658046,460.0,0.00041095,120]
[363833545,1748892658825,380.0,0.00041095,120]
[363833546,1748892659646,1775.08,0.00041095,120]
[363833547,1748892660194,460.0,0.00041095,120]
[363833548,1748892660411,460.0,0.00041095,120]
[363833549,1748892660629,460.0,0.00041095,120]
[363833550,1748892660720,460.0,0.00041095,120]
[363833551,1748892661169,460.0,0.00041095,120]
[363833552,1748892661371,420.0,0.00041095,120]
[363833553,1748892661422,460.0,0.00041095,120]
[363833554,1748892661480,460.0,0.00041095,120]
[363833555,1748892662119,460.0,0.00041095,120]
[363833556,1748892663909,460.0,0.00041095,120]
[363833557,1748892664338,460.0,0.00041095,120]
[363833558,1748892665055,420.0,0.00041095,120]
[363833559,1748892665908,460.0,0.00041095,120]
[363833560,1748892665955,460.0,0.00041095,120]
[363833561,1748892666786,460.0,0.00041095,120]
[363833562,1748892667877,460.0,0.00041095,120]
[363833563,1748892668880,460.0,0.00041095,120]
[363833564,1748892669541,460.0,0.00041095,120]
[363833565,1748892669736,460.0,0.00041095,120]
[363833566,1748892671669,460.0,0.00041095,120]
[363833567,1748892672241,460.0,0.00041095,120]
[363833568,1748892672294,460.0,0.00041095,120]
[363833569,1748892673161,460.0,0.00041095,120]
[363833570,1748892674695,460.0,0.00041095,120]
[363833571,1748892675203,460.0,0.00041095,120]
[363833572,1748892675611,420.0,0.00041095,120]
[363833573,1748892676465,460.0,0.00041095,120]
[363833574,1748892676828,460.0,0.00041095,120]
[363833575,1748892677169,6709.3871551,0.00041,120]
[363833576,1748892677416,460.0,0.00041095,120]
[363833577,1748892678032,460.0,0.00041095,120]
[363833578,1748892680133,197.90296268,0.00041095,120]
[363833579,1748892680407,526.28,0.00041095,120]
[363833580,1748892681518,592.09,0.00041095,120]
[363833581,1748892681581,362.65,0.00041095,120]
[363833582,1748892681677,460.0,0.00041095,120]
[363833583,1748892682139,460.0,0.00041095,120]
[363833584,1748892682644,460.0,0.00041095,120]
[363833585,1748892682797,489.52,0.00041095,120]
[363833586,1748892684026,449.50252967,0.00041095,120]
[363833587,1748892684072,420.0,0.00041095,120]
[363833588,1748892684824,583.16,0.00041095,120]
[363833589,1748892685190,460.0,0.00041095,120]
[363833590,1748892685927,460.0,0.00041095,120]
[363833591,1748892686296,460.0,0.00041095,120]
[363833592,1748892686462,460.0,0.00041095,120]
[363833593,1748892686991,420.0,0.00041095,120]
[363833594,1748892687705,472.89,0.00041095,120]
[363833595,1748892687799,460.0,0.00041095,120]
[363833596,1748892688312,460.0,0.00041095,120]
[363833597,1748892688669,306.28078328,0.00041095,120]
[363833598,1748892688848,460.0,0.00041095,120]
[363833599,1748892689913,420.0,0.00041095,120]
[363833600,1748892690381,516.56,0.00041095,120]
[363833601,1748892690809,460.0,0.00041095,120]
[363833602,1748892691626,460.0,0.00041095,120]
[363833603,1748892692378,557.57,0.00041095,120]
[363833604,1748892693782,460.0,0.00041095,120]
[363833605,1748892693839,460.0,0.00041095,120]
[363833606,1748892694370,460.0,0.00041095,120]
[363833607,1748892695358,250.0,0.00041095,120]
[363833608,1748892695503,940.25,0.00041095,120]
[363833609,1748892695564,460.0,0.00041095,120]
[363833610,1748892696046,460.0,0.00041095,120]
[363833611,1748892696748,460.0,0.00041095,120]
[363833612,1748892697040,460.0,0.00041095,120]
[363833613,1748892697850,460.0,0.00041095,120]
[363833614,1748892698309,1648.78,0.00041095,120]
[363833615,1748892698683,460.0,0.00041095,120]
[363833616,1748892699806,460.0,0.00041095,120]
[363833617,1748892700014,420.0,0.00041095,120]
[363833618,1748892700300,460.0,0.00041095,120]
[363833619,1748892700910,460.0,0.00041095,120]
[363833620,1748892700975,1971.66,0.00041095,120]
[363833621,1748892701039,460.0,0.00041095,120]
[363833622,1748892702409,460.0,0.00041095,120]
[363833623,1748892702931,420.0,0.00041095,120]
[363833624,1748892704925,460.0,0.00041095,120]
[363833625,1748892707689,460.0,0.00041095,120]
[363833626,1748892709055,460.0,0.00041095,120]
[363833627,1748892709832,460.0,0.00041095,120]
[363833628,1748892710200,460.0,0.00041095,120]
[363833629,1748892710469,3835.49,0.00041095,120]
[363833630,1748892711080,460.0,0.00041095,120]
[363833631,1748892711524,617.81,0.00041095,120]
[363833632,1748892711867,460.0,0.00041095,120]
[363833633,1748892711922,460.0,0.00041095,120]
[363833634,1748892713452,460.0,0.00041095,120]
[363833635,1748892713508,460.0,0.00041095,120]
[363833636,1748892714784,460.0,0.00041095,120]
[363833637,1748892715985,460.0,0.00041095,120]
[363833638,1748892716069,2176.78,0.00041095,120]
[363833639,1748892716154,460.0,0.00041095,120]
[363833640,1748892716201,460.0,0.00041095,120]
[363833641,1748892716723,460.0,0.00041095,120]
[363833642,1748892717673,421.05680729,0.00041095,120]
[363833643,1748892718268,580.91,0.00041095,120]
[363833644,1748892719052,460.0,0.00041095,120]
[363833645,1748892719260,460.0,0.00041095,120]
[363833646,1748892719320,380.0,0.00041095,120]
[363833647,1748892719618,460.0,0.00041095,120]
[363833648,1748892720105,460.0,0.00041095,120]
[363833649,1748892721573,460.0,0.00041095,120]
[363833650,1748892721743,460.0,0.00041095,120]
[363833651,1748892721839,622.04,0.00041095,120]
[363833652,1748892722148,460.0,0.00041095,120]
[363833653,1748892723276,460.0,0.00041095,120]
[363833654,1748892723625,460.0,0.00041095,120]
[363833655,1748892724010,1446.11,0.00041095,120]
[363833656,1748892726513,372.06,0.00041095,120]
[363833657,1748892727060,460.0,0.00041095,120]
[363833658,1748892727334,460.0,0.00041095,120]
[363833659,1748892727378,460.0,0.00041095,120]
[363833660,1748892727435,420.0,0.00041095,120]
[363833661,1748892727556,237.43,0.00041095,120]
[363833662,1748892728125,420.0,0.00041095,120]
[363833663,1748892728328,460.0,0.00041095,120]
[363833664,1748892728748,460.0,0.00041095,120]
[363833665,1748892730275,460.0,0.00041095,120]
[363833666,1748892730919,460.0,0.00041095,120]
[363833667,1748892731930,460.0,0.00041095,120]
[363833668,1748892732074,460.0,0.00041095,120]
[363833669,1748892732242,460.0,0.00041095,120]
[363833670,1748892732490,1943.24,0.00041095,120]
[363833671,1748892732602,1082.04,0.00041095,120]
[363833672,1748892733178,380.0,0.00041095,120]
[363833673,1748892733279,460.0,0.00041095,120]
[363833674,1748892734566,460.0,0.00041095,120]
[363833675,1748892734923,460.0,0.00041095,120]
[363833676,1748892735194,1790.01,0.00041095,120]
[363833677,1748892737145,420.0,0.00041095,120]
[363833678,1748892737265,460.0,0.00041095,120]
[363833679,1748892738033,460.0,0.00041095,120]
[363833680,1748892738133,460.0,0.00041095,120]
[363833681,1748892738183,460.0,0.00041095,120]
[363833682,1748892738364,304.50928822,0.00041095,120]
[363833683,1748892738991,460.0,0.00041095,120]
[363833684,1748892739357,460.0,0.00041095,120]
[363833685,1748892739865,420.0,0.00041095,120]
[363833686,1748892740515,460.0,0.00041095,120]
[363833687,1748892741180,460.0,0.00041095,120]
[363833688,1748892742165,460.0,0.00041095,120]
[363833689,1748892742307,587.25,0.00041095,120]
[363833690,1748892742939,460.0,0.00041095,120]
[363833691,1748892743248,460.0,0.00041095,120]
[363833692,1748892743479,460.0,0.00041095,120]
[363833693,1748892743587,460.0,0.00041095,120]
[363833694,1748892743668,460.0,0.00041095,120]
[363833695,1748892745686,460.0,0.00041095,120]
[363833696,1748892745986,460.0,0.00041095,120]
[363833697,1748892746039,420.0,0.00041095,120]
[363833698,1748892746496,460.0,0.00041095,120]
[363833699,1748892746686,460.0,0.00041095,120]
[363833701,1748892748425,1759.02,0.00041095,120]
[363833702,1748892749504,787.01,0.00041095,120]
[363833703,1748892749668,460.0,0.00041095,120]
[363833704,1748892750022,460.0,0.00041095,120]
[363833705,1748892750408,420.0,0.00041095,120]
[363833706,1748892750906,460.0,0.00041095,120]
[363833707,1748892751243,460.0,0.00041095,120]
[363833708,1748892751686,460.0,0.00041095,120]
[363833709,1748892752753,460.0,0.00041095,120]
[363833710,1748892753771,460.0,0.00041095,120]
[363833711,1748892753912,460.0,0.00041095,120]
[363833713,1748892754138,460.0,0.00041095,120]
[363833714,1748892754306,578.21,0.00041095,120]
[363833715,1748892756068,460.0,0.00041095,120]
[363833716,1748892756117,420.0,0.00041095,120]
[363833717,1748892756610,460.0,0.00041095,120]
[363833718,1748892757159,460.0,0.00041095,120]
[363833719,1748892758455,506.94,0.00041095,120]
[363833720,1748892758553,595.64,0.00041095,120]
[363833721,1748892759091,460.0,0.00041095,120]
[363833722,1748892759580,380.0,0.00041095,120]
[363833723,1748892759671,460.0,0.00041095,120]
[363833724,1748892759933,420.0,0.00041095,120]
[363833725,1748892760862,499.47,0.00041095,120]
[363833726,1748892760924,460.0,0.00041095,120]
[363833727,1748892761767,460.0,0.00041095,120]
[363833728,1748892761927,460.0,0.00041095,120]
[363833729,1748892762258,460.0,0.00041095,120]
[363833730,1748892762619,460.0,0.00041095,120]
[363833731,1748892763101,460.0,0.00041095,120]
[363833732,1748892763369,460.0,0.00041095,120]
[363833733,1748892763417,460.0,0.00041095,120]
[363833734,1748892763773,420.0,0.00041095,120]
[363833735,1748892765554,460.0,0.00041095,120]
[363833736,1748892765601,460.0,0.00041095,120]
[363833737,1748892765895,460.0,0.00041095,120]
[363833738,1748892765949,460.0,0.00041095,120]
[363833739,1748892766288,1760.25,0.00041095,120]
[363833740,1748892766916,460.0,0.00041095,120]
[363833741,1748892767154,460.0,0.00041095,120]
[363833742,1748892767234,423.33977958,0.00041095,120]
[363833743,1748892767914,460.0,0.00041095,120]
[363833745,1748892768852,420.0,0.00041095,120]
[363833746,1748892769063,420.0,0.00041095,120]
[363833747,1748892769124,1054.48,0.00041095,120]
[363833748,1748892769300,460.0,0.00041095,120]
[363833749,1748892770045,460.0,0.00041095,120]
[363833750,1748892770383,364.90447934,0.00041095,120]
[363833751,1748892770603,460.0,0.00041095,120]
[363833752,1748892770651,460.0,0.00041095,120]
[363833753,1748892770989,407.32581602,0.00041095,120]
[363833754,1748892773187,460.0,0.00041095,120]
[363833755,1748892773279,460.0,0.00041095,120]
[363833756,1748892773418,517.01,0.00041095,120]
[363833757,1748892773736,438.41187932,0.00041095,120]
[363833760,1748892793083,468.91907476,0.00039727,120]
[363833762,1748892916872,168.4,0.00013699,2]
[363833763,1748893348268,-460.0,0.00041095,120]
[363833764,1748893348323,-460.0,0.00041095,120]
[363833765,1748893348366,-489.56714005,0.00041095,120]
[363833766,1748893348409,-460.0,0.00041095,120]
[363833767,1748893348450,-460.0,0.00041095,120]
[363833768,1748893348491,-460.0,0.00041095,120]
[363833769,1748893348534,-460.0,0.00041095,120]
[363833770,1748893348577,-460.0,0.00041095,120]
[363833771,1748893348619,-207.6018106,0.00041095,120]
[363833772,1748893348667,-420.0,0.00041095,120]
[363833773,1748893348717,-460.0,0.00041095,120]
[363833774,1748893348760,-390.9,0.00041095,120]
[363833775,1748893348808,-380.0,0.00041095,120]
[363833776,1748893348856,-420.7696468,0.00041095,120]
[363833777,1748893348897,-460.0,0.00041095,120]
[363833778,1748893348944,-380.0,0.00041095,120]
[363833779,1748893348998,-526.12,0.00041095,120]
[363833780,1748893349046,-420.0,0.00041095,120]
[363833781,1748893349095,-460.0,0.00041095,120]
[363833782,1748893349137,-460.0,0.00041095,120]
[363833783,1748893349180,-380.0,0.00041095,120]
[363833784,1748893349227,-460.0,0.00041095,120]
[363833785,1748893349273,-380.0,0.00041095,120]
[363833786,1748893349320,-460.0,0.00041095,120]
[363833787,1748893349368,-460.0,0.00041095,120]
[363833788,1748893349416,-460.0,0.00041095,120]
[363833789,1748893349458,-420.0,0.00041095,120]
[363833790,1748893349516,-460.0,0.00041095,120]
[363833791,1748893349565,-460.0,0.00041095,120]
[363833792,1748893349607,-511.88,0.00041095,120]
[363833793,1748893349829,-460.0,0.00041095,120]
[363833794,1748893349871,-460.0,0.00041095,120]
[363833795,1748893349920,-460.0,0.00041095,120]
[363833796,1748893349966,-460.0,0.00041095,120]
[363833797,1748893350012,-460.0,0.00041095,120]
[363833798,1748893350058,-460.0,0.00041095,120]
[363833799,1748893350104,-460.0,0.00041095,120]
[363833800,1748893350144,-460.0,0.00041095,120]
[363833801,1748893350183,-460.0,0.00041095,120]
[363833802,1748893350221,-443.94976457,0.00041095,120]
[363833803,1748893350260,-460.0,0.00041095,120]
[363833804,1748893350300,-460.0,0.00041095,120]
[363833805,1748893350340,-593.8,0.00041095,120]
[363833806,1748893350382,-460.0,0.00041095,120]
[363833807,1748893350423,-460.0,0.00041095,120]
[363833808,1748893350462,-380.0,0.00041095,120]
[363833809,1748893350500,-460.0,0.00041095,120]
[363833810,1748893350537,-420.0,0.00041095,120]
[363833811,1748893350577,-460.0,0.00041095,120]
[363833812,1748893350616,-460.0,0.00041095,120]
[363833813,1748893350653,-380.0,0.00041095,120]